Cogmind - Beta 12 @@@ ROGUE MODE // 2023.06.13 @ 16:35:17 Player: Mr Goldstein Result: Destroyed by MAIN.C with High-powered Disruptor Cannon Performance ------------- Evolutions (9) 4500 Regions Visited (30) 6000 Robots Destroyed (51) 255 Value Destroyed (1848) 1848 Prototype IDs (47) 940 Alien Tech Used (4) 800 Bonus (16206) 16206 TOTAL SCORE: 30549 Bonus ------- Pacifist 634 High Alert Combat Kills 198 Follower Combat Kills 185 Network Hubs Disabled 200 Met Data Miner 300 Met Zhirov 300 Met Warlord at Base 500 MAIN.C Attacked Warlord 500 A7 Reached Mainframe 300 Met Warlord at Research 2000 Acquired SGEMP 2000 Delivered SGEMP 2000 Met MAIN.C 5000 Hacked MAIN.C 300 Met Warlord at Command 2000 Friendly Fire -211 Cogmind --------- Core Integrity 0/1600 Matter 279/300 Energy 93/100 System Corruption 3% Temperature Cool (0) Movement Core (50) Location -1/Command Parts ------- > --- POWER (2) -------- (None) > --- PROPULSION (8) --- (None) > --- UTILITY (14) ----- (None) > --- WEAPON (2) ------- (None) > --- INVENTORY (5) ---- Light Quantum Reactor Micro-nuke Launcher Vortex Lance (40) Vortex Lance (27) Peak State ------------ > --- POWER ------------ Light Quantum Reactor Light Quantum Reactor > --- PROPULSION ------- Nuclear Pulse Thruster Nuclear Pulse Thruster Nuclear Pulse Array Nuclear Pulse Array Impulse Thruster Array > --- UTILITY ---------- Spectral Analyzer 0b10 Decoder Chip [Looter] Advanced Target Analyzer Advanced Target Analyzer Advanced Phase Shifter Improved Medium Armor Plating Improved Hacking Suite System Mapper System Shield Makeshift System Shield Ghost Barrier Ghost Barrier > --- WEAPON ----------- Advanced Remote Datajack Enhanced Force Lance > --- INVENTORY -------- Experimental Energy Well Vortex Lance Vortex Lance SGEMP Prototype [Rating: 169] Favorites ----------- Power Backup Power III Engine Backup Power III Power Core Reinforced Fission Core Reactor Light Quantum Reactor Propulsion Flight Unit Treads Improved Treads Leg Myomer Leg Hover Unit Cooled Antigrav System Flight Unit Flight Unit Utility Ghost Barrier Device Advanced Heat Sink Storage Medium Storage Unit Processor Spectral Analyzer Hackware Ghost Barrier Protection Propulsion Shielding Weapon Backup Laser III Energy Gun Backup Laser III Energy Cannon Null Cannon Ballistic Gun Heavy Battle Rifle Launcher Heavy Rocket Launcher Special Weapon Advanced Remote Datajack Impact Weapon Maul Slashing Weapon Great Axe Piercing Weapon Enhanced Force Lance Build | -11 -10 -10 -10 -9 -8 -7 -7 -7 -7 -6 -6 -6 -6 -6 -6 -5 -5 -5 -5 -4 -4 -4 -4 -4 -3 -3 -3 -2 -1 -1 ------- Run | Jun Mat Min Exi Min Mat Fac Low Low Dat Pro Fac Ext Cet Arc Hub Fac Upp Upp War Pro Fac Upp Upp Zhi Pro Res Tes Res Acc Com Slots Evolved 18 | . . . . . 4 2 . . . . 2 . . . . 2 . . . . 2 . . . . 2 . 2 2 . Power 1 | . . . . . . . . . . . . . . . . 1 . . . . . . . . . . . . . . Propulsion 6 | . . . . . 2 1 . . . . . . . . . 1 . . . . 1 . . . . 1 . . . . Utility 11 | . . . . . 2 1 . . . . 2 . . . . . . . . . 1 . . . . 1 . 2 2 . Weapon . | . . . . . . . . . . . . . . . . . . . . . . . . . . . . . . . Parts Attached 174 | . 3 3 . . 2 10 10 2 . 1 2 9 . 1 10 8 . 6 16 5 3 1 1 7 . 5 20 20 12 17 Power 23 | . 1 . . . . 2 . . . . 1 1 . . . 1 . 1 3 1 1 . . 1 . 1 1 5 2 1 Engine 5 | . 1 . . . . . . . . . . . . . . . . 1 . 1 . . . . . 1 1 . . . Core 9 | . . . . . . 2 . . . . 1 1 . . . 1 . . 2 . 1 . . . . . . 1 . . Reactor 9 | . . . . . . . . . . . . . . . . . . . 1 . . . . 1 . . . 4 2 1 Propulsion 61 | . 2 2 . . 1 3 2 . . . 1 1 . . 7 6 . 1 6 1 1 . . 3 . 2 3 5 5 9 Treads 2 | . . . . . . . . . . . . . . . . . . 1 . . . . . . . . 1 . . . Leg 6 | . . . . . . . . . . . . . . . . . . . . . . . . . . . 1 . . 5 Wheel . | . . . . . . . . . . . . . . . . . . . . . . . . . . . . . . . Hover 18 | . . . . . . . . . . . . . . . 3 2 . . 6 1 1 . . 3 . 2 . . . . Flight 35 | . 2 2 . . 1 3 2 . . . 1 1 . . 4 4 . . . . . . . . . . 1 5 5 4 Utility 53 | . . 1 . . 1 4 5 2 . 1 . 4 . 1 . 1 . 3 6 2 1 1 1 2 . 1 6 7 1 2 Device 14 | . . . . . . . 2 1 . . . 1 . . . . . . 3 2 1 . . 1 . . 2 1 . . Storage 4 | . . . . . . 1 . . . . . . . . . . . . 1 . . . . . . . 1 1 . . Processor 14 | . . 1 . . . 3 1 1 . 1 . 1 . . . . . . 1 . . . 1 . . . 1 1 1 1 Hackware 13 | . . . . . . . . . . . . 1 . 1 . 1 . . 1 . . 1 . 1 . 1 2 3 . 1 Protection 8 | . . . . . 1 . 2 . . . . 1 . . . . . 3 . . . . . . . . . 1 . . Artifact . | . . . . . . . . . . . . . . . . . . . . . . . . . . . . . . . Weapon 37 | . . . . . . 1 3 . . . . 3 . . 3 . . 1 1 1 . . . 1 . 1 10 3 4 5 Energy Gun 1 | . . . . . . . . . . . . . . . . . . . . . . . . 1 . . . . . . Energy Cannon 1 | . . . . . . . . . . . . . . . . . . . . . . . . . . . 1 . . . Ballistic Gun 2 | . . . . . . . . . . . . . . . . . . . . . . . . . . . . . . 2 Ballistic Cannon . | . . . . . . . . . . . . . . . . . . . . . . . . . . . . . . . Launcher 10 | . . . . . . . 1 . . . . 2 . . 3 . . . . 1 . . . . . . . . 2 1 Special Weapon 6 | . . . . . . . . . . . . . . . . . . 1 1 . . . . . . . 1 1 . 2 Impact Weapon 1 | . . . . . . 1 . . . . . . . . . . . . . . . . . . . . . . . . Slashing Weapon 5 | . . . . . . . 2 . . . . 1 . . . . . . . . . . . . . . 2 . . . Piercing Weapon 11 | . . . . . . . . . . . . . . . . . . . . . . . . . . 1 6 2 2 . Special Melee Weapon . | . . . . . . . . . . . . . . . . . . . . . . . . . . . . . . . Unidentified Prototypes 17 | . . . . . . . 1 1 . . 1 . 1 . . . . . 2 . . . . 4 . 1 6 . . . Corrupted Parts 2 | . . . . . . . . . . . . . . . . . . 1 . 1 . . . . . . . . . . System Corruption 11 | . . . . . . . . . . . . . . . . . . 10 . 1 . . . . . . . . . . Parts Lost 84 | . . . . . . . . . . . . 1 5 3 3 5 5 2 3 5 . 1 . . 8 8 5 3 11 16 Power 12 | . . . . . . . . . . . . . 1 . . . . 1 2 1 . . . . 1 2 1 . 3 . Propulsion 40 | . . . . . . . . . . . . . 2 1 . 5 4 . . 2 . . . . 3 4 2 1 6 10 Utility 26 | . . . . . . . . . . . . 1 2 1 2 . 1 1 1 2 . . . . 2 2 1 2 2 6 Weapon 6 | . . . . . . . . . . . . . . 1 1 . . . . . . 1 . . 2 . 1 . . . Highest Loss Streak 21 | . . . . . . . . . . . . 1 5 3 4 4 3 1 2 3 . 1 . . 5 11 4 2 11 21 To Critical Strikes . | . . . . . . . . . . . . . . . . . . . . . . . . . . . . . . . Average Slot Usage (%) 68 | . 16 54 57 57 45 78 97 92 92 92 81 85 57 56 50 43 33 25 75 91 78 85 89 96 90 51 46 67 68 38 Engine 2 | . 4 14 14 14 9 1 . . . . . . . . . . . 1 7 3 2 . . . . 1 1 . . . Core 3 | . . . . . . 5 7 7 7 7 6 6 . . . . . . 1 5 7 10 10 6 4 . . . . . Hover 8 | . . . . . . . . . . . . . . . 13 13 7 . 17 29 25 30 30 33 32 19 4 . . . Flight 13 | . 12 28 28 28 20 36 37 35 35 35 31 31 18 18 13 12 5 . . . . . . . . . . 15 16 4 Device 4 | . . . . . . . 6 7 7 7 6 3 . . . . . . 6 13 12 15 15 15 9 1 . 1 . . Storage 1 | . . . . . . . . . . . . . . . . . . . 2 5 5 5 5 5 5 4 1 . . . Processor 13 | . . 12 14 14 9 20 22 21 21 21 18 18 18 18 18 16 16 11 8 5 5 5 9 10 10 9 12 12 12 10 Hackware 7 | . . . . . . . . . . . . 4 6 8 4 . 4 . 2 5 5 9 10 13 15 14 18 26 24 11 Protection 6 | . . . . . 6 7 8 14 14 14 12 13 6 6 . . . 9 15 9 5 5 5 1 . . . 2 2 . Energy Gun 2 | . . . . . . . . . . . . . . . . . . . 9 9 5 5 5 8 7 . . . . . Slashing Weapon 1 | . . . . . . . 6 7 7 7 6 5 6 4 . . . . . . . . . . . . . . . . Naked Turns 42 | . 42 . . . . . . . . . . . . . . . . . . . . . . . . . . . . . Heaviest Build 61 | . 3 3 3 3 8 18 19 17 17 17 18 28 24 7 . 14 . 6 61 60 55 55 48 48 46 35 16 53 50 19 Greatest Support 128 | 3 8 8 8 8 12 20 22 22 22 22 24 24 24 15 24 17 9 3 70 70 74 74 74 85 87 67 23 54 55 128 Greatest Overweight (x) 3 | . . . . . . . . . . . . 1 . . . . . 1 2 . . . . . . 3 1 . . . Average Overweight (x) . | . . . . . . . . . . . . . . . . . . . . . . . . . . . . . . . Largest Inventory Capacity 10 | 5 5 5 5 5 5 10 5 5 5 5 5 5 5 5 5 5 5 5 10 10 10 10 10 10 10 10 10 5 5 5 Average Capacity 6 | 5 5 5 5 5 5 5 5 5 5 5 5 5 5 5 5 5 5 5 7 10 10 10 10 10 10 10 7 5 5 5 Most Carried 10 | 1 3 5 5 5 5 5 5 5 4 5 5 5 5 4 5 5 3 4 8 8 8 7 8 10 10 9 6 5 5 5 Average Carried 5 | . 1 4 5 5 4 4 4 4 4 4 5 4 4 4 4 4 3 3 4 7 7 7 7 8 10 6 4 4 3 4 Final Capacity 10 | 5 5 5 5 5 5 5 5 5 5 5 5 5 5 5 5 5 5 5 10 10 10 10 10 10 10 10 5 5 5 5 Final Carried 10 | 1 3 5 5 5 5 5 5 4 4 5 5 5 4 4 5 3 3 4 8 7 7 7 8 10 10 7 5 5 5 4 Class Distribution -------------------- 23% | Hacker-Mutant 23% | Mutant 11% | Derelict-Scout 8% | Wizard-Sprinter 6% | Wizard-Mutant 6% | Sprinter 5% | Commander-Sprinter 4% | Hacker-Sprinter 4% | Derelict-Mutant 3% | Scout Dominant Class ---------------- Mutant | -10/Materials Mutant | -10/Mines Mutant | -10/Exiles Mutant | -9/Mines Mutant | -8/Materials Sprinter | -7/Factory Derelict-Scout | -7/Lower Caves Derelict-Scout | -7/Lower Caves Derelict-Scout | -7/Data Miner Derelict-Scout | -6/Proximity Caves Derelict-Scout | -6/Factory Commander-Sprinter | -6/Extension Commander-Sprinter | -6/Cetus Sprinter | -6/Archives Mutant | -6/Hub_04(d) Mutant | -5/Factory Mutant | -5/Upper Caves Mutant | -5/Upper Caves Mutant | -5/Warlord Hacker-Mutant | -4/Proximity Caves Hacker-Mutant | -4/Factory Hacker-Mutant | -4/Upper Caves Derelict-Mutant | -4/Upper Caves Hacker-Sprinter | -4/Zhirov Hacker-Sprinter | -3/Proximity Caves Hacker-Mutant | -3/Research Wizard-Mutant | -3/Testing Wizard-Sprinter | -2/Research Wizard-Sprinter | -1/Access Hacker-Mutant | -1/Command Resources | -11 -10 -10 -10 -9 -8 -7 -7 -7 -7 -6 -6 -6 -6 -6 -6 -5 -5 -5 -5 -4 -4 -4 -4 -4 -3 -3 -3 -2 -1 -1 ----------- Run | Jun Mat Min Exi Min Mat Fac Low Low Dat Pro Fac Ext Cet Arc Hub Fac Upp Upp War Pro Fac Upp Upp Zhi Pro Res Tes Res Acc Com Matter Collected 2100 | 200 . 40 . 20 . 90 163 33 . 28 . 132 17 31 28 . 37 121 285 23 . 65 54 116 . . 117 269 7 224 Remotely . | . . . . . . . . . . . . . . . . . . . . . . . . . . . . . . . Salvage Created 1765 | . . . . . . 16 474 . . . . 252 . 31 198 . . . . 63 . . . 445 . . 29 107 150 . Parts 82 | . . . . . . 1 11 . . . . 16 . 2 17 . . . . 10 . . . 6 . . 3 2 14 . Haulers Intercepted 1 | . . . . . . . . . . . . . . . . . . . . . . . . . . . . 1 . . Recyclers Shooed 1 | . . . . . . . . . . . . . . . 1 . . . . . . . . . . . . . . . Parts Field Recycled . | . . . . . . . . . . . . . . . . . . . . . . . . . . . . . . . Retrieved Matter . | . . . . . . . . . . . . . . . . . . . . . . . . . . . . . . . Parts Self-Destructed 21 | . . . . . . . 6 . . . . . . . . . . . . 9 . . 2 4 . . . . . . Prevented 5 | . . . . . . . . . . . . . . . . . . 4 . . . . 1 . . . . . . . Kills | -11 -10 -10 -10 -9 -8 -7 -7 -7 -7 -6 -6 -6 -6 -6 -6 -5 -5 -5 -5 -4 -4 -4 -4 -4 -3 -3 -3 -2 -1 -1 ------- Run | Jun Mat Min Exi Min Mat Fac Low Low Dat Pro Fac Ext Cet Arc Hub Fac Upp Upp War Pro Fac Upp Upp Zhi Pro Res Tes Res Acc Com Combat Hostiles Destroyed 36 | . . . . . . . 3 . . . . 11 . . 6 . . . . 6 . . . . . . . . 10 . Melee 3 | . . . . . . . . . . . . 3 . . . . . . . . . . . . . . . . . . AOE 33 | . . . . . . . 3 . . . . 8 . . 6 . . . . 6 . . . . . . . . 10 . Classes Destroyed 10 | . . . . . . 1 1 . . . . 3 . 1 2 . . . . 1 . . . . . . . 1 . . Worker 6 | . . . . . . 1 . . . . . . . . 5 . . . . . . . . . . . . . . . Builder 3 | . . . . . . . . . . . . 1 . . 2 . . . . . . . . . . . . . . . Hauler 1 | . . . . . . . . . . . . . . . . . . . . . . . . . . . . 1 . . Operator 3 | . . . . . . . . . . . . . . 1 1 . . . . . . . . . . . . 1 . . Drone 1 | . . . . . . . . . . . . . . . . . . . . 1 . . . . . . . . . . Watcher 2 | . . . . . . . . . . . . . . . 1 . . . . . . . . . . . 1 . . . Swarmer 28 | . . . . . . . 3 . . . . 6 . . 4 . . . . 5 . . . . . . . . 10 . Cutter 2 | . . . . . . . . . . . . . . . 2 . . . . . . . . . . . . . . . Grunt 4 | . . . . . . . . . . . . 4 . . . . . . . . . . . . . . . . . . Sentry 1 | . . . . . . . . . . . . 1 . . . . . . . . . . . . . . . . . . Best Kill Streak 8 | . . . . . . 1 3 . . . . 7 . 1 8 . . . . 6 . . . . . . 1 1 5 . Combat Bots Only 7 | . . . . . . . 3 . . . . 7 . . 4 . . . . 6 . . . . . . . . 5 . Max Kills in Single Turn 8 | . . . . . . 1 2 . . . . 3 . 1 8 . . . . 4 . . . . . . 1 1 5 . Gunslinging . | . . . . . . . . . . . . . . . . . . . . . . . . . . . . . . . Exploded 5 | . . . . . . . 2 . . . . 3 . . 2 . . . . 4 . . . . . . . . 5 . Melee 1 | . . . . . . . . . . . . 1 . . . . . . . . . . . . . . . . . . Uniques/NPCs Destroyed . | . . . . . . . . . . . . . . . . . . . . . . . . . . . . . . . Combat | -11 -10 -10 -10 -9 -8 -7 -7 -7 -7 -6 -6 -6 -6 -6 -6 -5 -5 -5 -5 -4 -4 -4 -4 -4 -3 -3 -3 -2 -1 -1 -------- Run | Jun Mat Min Exi Min Mat Fac Low Low Dat Pro Fac Ext Cet Arc Hub Fac Upp Upp War Pro Fac Upp Upp Zhi Pro Res Tes Res Acc Com Damage Taken 10174 | . . 14 . . . . 18 50 . . 39 492 276 124 544 277 716 156 379 496 39 66 . . 956 883 750 593 815 2491 Core 4026 | . . . . . . . . . . . . 116 23 22 176 87 550 116 66 54 . 15 . . 205 375 451 163 64 1543 Absorbed by Shields 12 | . . . . . . . . . . . . . . . . . . . 12 . . . . . . . . . . . Redirected to Shielding 223 | . . . . . . . . 9 . . 3 53 48 . . . . . 18 81 11 . . . . . . . . . Regen/Repaired (Parts) 34 | . . . . . . . . . . . . . . . . . . . 34 . . . . . . . . . . . Core Remaining (%) 74 | 100 . . . 100 100 . . . . 100 . . . . 60 . . . . 12 . . . . 80 . 33 88 . . Volleys Fired 65 | . . . . . . . 2 . . . . 7 . . 8 . . 2 12 5 2 . . 21 . . . . 3 3 Largest 2 | . . . . . . . 1 . . . . 1 . . 1 . . 1 2 1 1 . . 2 . . . . 1 1 Hottest 80 | . . . . . . . 39 . . . . 39 . . 39 . . 5 80 39 39 . . 80 . . . . 49 49 Shots Fired 93 | . . . . . . . 2 . . . . 7 . . 8 . . 2 19 5 2 . . 42 . . . . 3 3 Gun 58 | . . . . . . . . . . . . . . . . . . . 16 . . . . 42 . . . . . . Cannon . | . . . . . . . . . . . . . . . . . . . . . . . . . . . . . . . Launcher 28 | . . . . . . . 2 . . . . 7 . . 8 . . . . 5 2 . . . . . . . 3 1 Special 7 | . . . . . . . . . . . . . . . . . . 2 3 . . . . . . . . . . 2 Kinetic . | . . . . . . . . . . . . . . . . . . . . . . . . . . . . . . . Thermal 58 | . . . . . . . . . . . . . . . . . . . 16 . . . . 42 . . . . . . Explosive 28 | . . . . . . . 2 . . . . 7 . . 8 . . . . 5 2 . . . . . . . 3 1 Electromagnetic . | . . . . . . . . . . . . . . . . . . . . . . . . . . . . . . . Robot Hit Streak 21 | . . . . . . . . . . . . 2 . . 1 . . 1 8 . . . . 21 . . . . . 16 Robot Miss Streak 2 | . . . . . . . . . . . . . . . 2 . . 1 1 . . . . 2 . . . . . . Penetration Max . | . . . . . . . . . . . . . . . . . . . . . . . . . . . . . . . Secondary Targets . | . . . . . . . . . . . . . . . . . . . . . . . . . . . . . . . Shots Hit Robots 69 | . . . . . . 1 8 . . . . 6 . 3 1 . . 1 8 . . . . 34 . . 2 2 1 2 Core Hits 95 | . . . . . . 1 10 . . . . 23 . 1 24 . . . 1 6 . . . 18 . . 1 1 9 . Critical Kills 1 | . . . . . . 1 . . . . . . . . . . . . . . . . . . . . . . . . Critical Parts Destroyed . | . . . . . . . . . . . . . . . . . . . . . . . . . . . . . . . Critical Strikes 4 | . . . . . . 1 . . . . . . . . . . . . . . . . . . . . 1 2 . . Smash 1 | . . . . . . 1 . . . . . . . . . . . . . . . . . . . . . . . . Impale 2 | . . . . . . . . . . . . . . . . . . . . . . . . . . . . 2 . . Sunder 1 | . . . . . . . . . . . . . . . . . . . . . . . . . . . 1 . . . Melee Attacks 61 | . . . . . . 2 12 7 . 1 . 10 . 3 . . . . . . . . . . . 3 9 5 9 . Impact 3 | . . . . . . 2 1 . . . . . . . . . . . . . . . . . . . . . . . Slashing 32 | . . . . . . . 11 7 . 1 . 10 . 3 . . . . . . . . . . . . . . . . Piercing 13 | . . . . . . . . . . . . . . . . . . . . . . . . . . . . 4 9 . Entropic 13 | . . . . . . . . . . . . . . . . . . . . . . . . . . 3 9 1 . . Sneak Attacks 5 | . . . . . . 1 . . . . . 1 . 1 . . . . . . . . . . . . . 2 . . Combat Hostiles 1 | . . . . . . . . . . . . 1 . . . . . . . . . . . . . . . . . . Follow-up Attacks . | . . . . . . . . . . . . . . . . . . . . . . . . . . . . . . . Damage Inflicted 6778 | . . . . . . 82 737 . . . . 1143 . 189 1616 . 4 . 191 464 . . . 407 . . 182 269 1465 29 Guns 484 | . . . . . . . . . . . . . . . . . . . 77 . . . . 407 . . . . . . Cannons . | . . . . . . . . . . . . . . . . . . . . . . . . . . . . . . . Explosions 4660 | . . . . . . . 211 . . . . 936 . . 1616 . . . . 464 . . . . . . . . 1404 29 Melee 1502 | . . . . . . 82 526 . . . . 207 . 189 . . . . . . . . . . . . 170 267 61 . Ramming 132 | . . . . . . . . . . . . . . . . . 4 . 114 . . . . . . . 12 2 . . Kinetic . | . . . . . . . . . . . . . . . . . . . . . . . . . . . . . . . Thermal 484 | . . . . . . . . . . . . . . . . . . . 77 . . . . 407 . . . . . . Explosive 3654 | . . . . . . . 211 . . . . 936 . . 610 . . . . 464 . . . . . . . . 1404 29 Electromagnetic 1006 | . . . . . . . . . . . . . . . 1006 . . . . . . . . . . . . . . . Impact 82 | . . . . . . 82 . . . . . . . . . . . . . . . . . . . . . . . . Slashing 922 | . . . . . . . 526 . . . . 207 . 189 . . . . . . . . . . . . . . . . Piercing 328 | . . . . . . . . . . . . . . . . . . . . . . . . . . . . 267 61 . Entropic 170 | . . . . . . . . . . . . . . . . . . . . . . . . . . . 170 . . . Highest Corruption 12 | . . . . . . 1 1 1 1 1 . . . . 4 2 2 12 12 2 . . . . . 4 4 3 . 3 Average Corruption 2 | . . . . . . 1 1 1 1 1 . . . . 2 1 2 4 12 1 . . . . . 2 4 2 . 2 Corruption Purged . | . . . . . . . . . . . . . . . . . . . . . . . . . . . . . . . Corruption Blocked . | . . . . . . . . . . . . . . . . . . . . . . . . . . . . . . . Effects 22 | . . . . . . 1 1 4 . 1 . . . . 1 . 2 4 1 . . . . . . . 5 1 . 1 Message Errors 4 | . . . . . . . . 1 . . . . . . . . . 1 . . . . . . . . 1 . . 1 Matter Fused 8 | . . . . . . . . 2 . 1 . . . . 1 . 1 . . . . . . . . . 3 . . . Heat Flow Errors 2 | . . . . . . . . 1 . . . . . . . . . . 1 . . . . . . . . . . . Energy Discharges 3 | . . . . . . . . . . . . . . . . . 1 2 . . . . . . . . . . . . Parts Rejected 1 | . . . . . . . . . . . . . . . . . . . . . . . . . . . . 1 . . Data Loss (minor) 1 | . . . . . . . . . . . . . . . . . . . . . . . . . . . 1 . . . Data Loss (major) 2 | . . . . . . . 1 . . . . . . . . . . 1 . . . . . . . . . . . . Alerts 1 | . . . . . . 1 . . . . . . . . . . . . . . . . . . . . . . . . Overload Shots . | . . . . . . . . . . . . . . . . . . . . . . . . . . . . . . . Overflow Damage 721 | . . . . . . . 68 . . . . 50 . 80 85 . . . 28 6 . . . . . . 36 210 158 . Projectiles . | . . . . . . . . . . . . . . . . . . . . . . . . . . . . . . . Explosions 327 | . . . . . . . 28 . . . . 50 . . 85 . . . . 6 . . . . . . . . 158 . Melee 394 | . . . . . . . 40 . . . . . . 80 . . . . 28 . . . . . . . 36 210 . . Knockbacks 2 | . . . . . . . . . . . . . . . . . . . 2 . . . . . . . . . . . Impact 1 | . . . . . . . . . . . . . . . . . . . 1 . . . . . . . . . . . Kinetic . | . . . . . . . . . . . . . . . . . . . . . . . . . . . . . . . Secondary 1 | . . . . . . . . . . . . . . . . . . . 1 . . . . . . . . . . . Self-Inflicted Damage 321 | . . . . . . . . . . . . . . . 175 . 2 . 56 38 . . . . . . 6 . 44 . Shots 6 | . . . . . . . . . . . . . . . 4 . . . . 1 . . . . . . . . 1 . Rammed 11 | . . . . . . . . . . . . . . . . . 2 . 3 . . . . . . . 3 3 . . Targets Rammed 11 | . . . . . . . . . . . . . . . . . 2 . 3 . . . . . . . 3 3 . . Kicked . | . . . . . . . . . . . . . . . . . . . . . . . . . . . . . . . Crushed . | . . . . . . . . . . . . . . . . . . . . . . . . . . . . . . . Highest Temperature 340 | . . . . . . 33 63 179 44 66 6 24 1 . . . . . 156 . . . . . . . 340 . . . Average Temperature 25 | . . . . . . 10 17 38 23 31 3 8 1 . . . . . 41 . . . . . . . 175 . . . Received Heat Transfer 837 | . . . . . . . . 27 . . 6 111 36 18 90 36 36 30 27 18 21 . . . 24 18 24 36 117 162 Siege Activations . | . . . . . . . . . . . . . . . . . . . . . . . . . . . . . . . Robots Corrupted . | . . . . . . . . . . . . . . . . . . . . . . . . . . . . . . . Combat Hostiles . | . . . . . . . . . . . . . . . . . . . . . . . . . . . . . . . Parts Fried 8 | . . . . . . . . . . . . . . . 8 . . . . . . . . . . . . . . . Impact Corruptions 1 | . . . . . . . . . . . . . . . . . . . 1 . . . . . . . . . . . Robots Melted . | . . . . . . . . . . . . . . . . . . . . . . . . . . . . . . . Combat Hostiles . | . . . . . . . . . . . . . . . . . . . . . . . . . . . . . . . Parts Melted . | . . . . . . . . . . . . . . . . . . . . . . . . . . . . . . . Heat Transferred 1386 | . . . . . . . . . . . . . . . . . . . 222 . . . . 1164 . . . . . . Parts Sabotaged . | . . . . . . . . . . . . . . . . . . . . . . . . . . . . . . . Parts Stolen . | . . . . . . . . . . . . . . . . . . . . . . . . . . . . . . . Parts Stripped . | . . . . . . . . . . . . . . . . . . . . . . . . . . . . . . . Power Chain Reactions . | . . . . . . . . . . . . . . . . . . . . . . . . . . . . . . . Missiles Intercepted . | . . . . . . . . . . . . . . . . . . . . . . . . . . . . . . . Alert | -11 -10 -10 -10 -9 -8 -7 -7 -7 -7 -6 -6 -6 -6 -6 -6 -5 -5 -5 -5 -4 -4 -4 -4 -4 -3 -3 -3 -2 -1 -1 ------- Run | Jun Mat Min Exi Min Mat Fac Low Low Dat Pro Fac Ext Cet Arc Hub Fac Upp Upp War Pro Fac Upp Upp Zhi Pro Res Tes Res Acc Com Peak Influence 900 | . 75 163 . . . 154 . . . . 105 535 346 168 882 530 . . . . 624 . . . . 210 192 723 900 713 Initial 556 | . . 28 . . . . . . . . . 51 299 138 51 431 . . . . 541 . . . . 205 107 108 313 556 Average 326 | . 30 92 . . . 119 . . . . 21 346 332 153 278 482 . . . . 567 . . . . 194 158 326 498 599 Maximum Alert Level 3 | . . . . . . . . . . . . 2 1 . 3 2 . . . . 2 . . . . 1 . 3 3 3 Low Security (%) 41 | 100 100 100 . 100 100 100 . . . . 100 28 . 100 48 . . . . . . . . . . 72 100 27 . . Level 1 24 | . . . . . . . . . . . . 18 100 . 35 . . . . . . . . . . 27 . 53 53 11 Level 2 30 | . . . . . . . . . . . . 53 . . . 100 . . . . 100 . . . . . . 16 28 75 Level 3 4 | . . . . . . . . . . . . . . . 16 . . . . . . . . . . . . 2 18 13 Level 4 . | . . . . . . . . . . . . . . . . . . . . . . . . . . . . . . . Level 5 . | . . . . . . . . . . . . . . . . . . . . . . . . . . . . . . . High Security . | . . . . . . . . . . . . . . . . . . . . . . . . . . . . . . . Max Security . | . . . . . . . . . . . . . . . . . . . . . . . . . . . . . . . Squads Dispatched 20 | . 3 . . . . 2 . . . . . 2 1 . 2 2 . . . . . . . . . . 2 3 1 2 Investigation 8 | . 2 . . . . 2 . . . . . . 1 . 1 . . . . . . . . . . . 1 1 . . Extermination 2 | . . . . . . . . . . . . . . . . . . . . . . . . . . . 1 . . 1 Reinforcement 10 | . 1 . . . . . . . . . . 2 . . 1 2 . . . . . . . . . . . 2 1 1 Assault . | . . . . . . . . . . . . . . . . . . . . . . . . . . . . . . . Garrison . | . . . . . . . . . . . . . . . . . . . . . . . . . . . . . . . Intercept . | . . . . . . . . . . . . . . . . . . . . . . . . . . . . . . . Searches Triggered 1 | . . . . . . . . . . . . . . . . . . . . . . . . . . . . . . 1 Data Miner Redirects 3 | . . . . . . . . . . . . . 1 . 1 . . . . . . . . . . . 1 . . . Construction Impeded . | . . . . . . . . . . . . . . . . . . . . . . . . . . . . . . . Haulers Reinforced . | . . . . . . . . . . . . . . . . . . . . . . . . . . . . . . . Active Scanning Responses . | . . . . . . . . . . . . . . . . . . . . . . . . . . . . . . . Cargo Convoy Interrupts . | . . . . . . . . . . . . . . . . . . . . . . . . . . . . . . . Stealth | -11 -10 -10 -10 -9 -8 -7 -7 -7 -7 -6 -6 -6 -6 -6 -6 -5 -5 -5 -5 -4 -4 -4 -4 -4 -3 -3 -3 -2 -1 -1 --------- Run | Jun Mat Min Exi Min Mat Fac Low Low Dat Pro Fac Ext Cet Arc Hub Fac Upp Upp War Pro Fac Upp Upp Zhi Pro Res Tes Res Acc Com Distress Signals 11 | . . . . . . . . . . . . 1 1 . 1 2 . . . . . . . . . . . 6 . . Communications Jammed . | . . . . . . . . . . . . . . . . . . . . . . . . . . . . . . . Distress Signals . | . . . . . . . . . . . . . . . . . . . . . . . . . . . . . . . Times Spotted 354 | . 7 7 . 3 . 5 1 7 . . 5 22 5 4 15 10 18 5 41 14 4 15 4 . 32 6 15 39 30 40 Peak Tracking Total 21 | . 7 3 . 3 . 2 1 5 . . 11 11 5 3 6 7 12 3 12 8 3 12 4 . 10 5 7 13 18 21 Tactical Retreats 43 | . . 2 . . . 1 . 2 . . 1 3 . . 2 2 2 2 . 2 1 3 . . 6 . 2 5 3 4 Traps | -11 -10 -10 -10 -9 -8 -7 -7 -7 -7 -6 -6 -6 -6 -6 -6 -5 -5 -5 -5 -4 -4 -4 -4 -4 -3 -3 -3 -2 -1 -1 ------- Run | Jun Mat Min Exi Min Mat Fac Low Low Dat Pro Fac Ext Cet Arc Hub Fac Upp Upp War Pro Fac Upp Upp Zhi Pro Res Tes Res Acc Com Traps Triggered 4 | . . . . . . . . . . . . 1 . . . 1 . . . . . . . . . 1 . 1 . . Indirectly . | . . . . . . . . . . . . . . . . . . . . . . . . . . . . . . . Trap Hack Attempts . | . . . . . . . . . . . . . . . . . . . . . . . . . . . . . . . Triggered . | . . . . . . . . . . . . . . . . . . . . . . . . . . . . . . . Disarmed . | . . . . . . . . . . . . . . . . . . . . . . . . . . . . . . . Reprogrammed . | . . . . . . . . . . . . . . . . . . . . . . . . . . . . . . . Reused . | . . . . . . . . . . . . . . . . . . . . . . . . . . . . . . . Traps Extracted . | . . . . . . . . . . . . . . . . . . . . . . . . . . . . . . . Installed 1 | . . . . . . . . 1 . . . . . . . . . . . . . . . . . . . . . . Triggered 9 | . . . . . . . . 1 . . . . . . . . . . 7 1 . . . . . . . . . . Machines | -11 -10 -10 -10 -9 -8 -7 -7 -7 -7 -6 -6 -6 -6 -6 -6 -5 -5 -5 -5 -4 -4 -4 -4 -4 -3 -3 -3 -2 -1 -1 ---------- Run | Jun Mat Min Exi Min Mat Fac Low Low Dat Pro Fac Ext Cet Arc Hub Fac Upp Upp War Pro Fac Upp Upp Zhi Pro Res Tes Res Acc Com Machines Disabled 37 | . . . . . . . . . . 1 . 1 . . 28 . . . . . . . . . . . 3 1 3 . Max in Single Turn 26 | . . . . . . . . . . 1 . 1 . . 26 . . . . . . . . . . . 1 1 1 . Garrison Access 2 | . . . . . . . . . . . . . . . . . . . . . . . . . . . . 2 . . Network Hub 1 | . . . . . . . . . . . . . . . 1 . . . . . . . . . . . . . . . Machines Repaired . | . . . . . . . . . . . . . . . . . . . . . . . . . . . . . . . Machines Sabotaged . | . . . . . . . . . . . . . . . . . . . . . . . . . . . . . . . Overloaded Fab Kills . | . . . . . . . . . . . . . . . . . . . . . . . . . . . . . . . Hacking | -11 -10 -10 -10 -9 -8 -7 -7 -7 -7 -6 -6 -6 -6 -6 -6 -5 -5 -5 -5 -4 -4 -4 -4 -4 -3 -3 -3 -2 -1 -1 --------- Run | Jun Mat Min Exi Min Mat Fac Low Low Dat Pro Fac Ext Cet Arc Hub Fac Upp Upp War Pro Fac Upp Upp Zhi Pro Res Tes Res Acc Com Machines Accessed 31 | . 3 . 1 . . 3 1 1 3 . . . 1 . 3 1 . 1 1 . 1 . . 4 . . 3 1 . 3 Terminals 15 | . 2 . . . . 2 . . . . . . 1 . 2 1 . . . . 1 . . . . . 3 . . 3 Fabricators . | . . . . . . . . . . . . . . . . . . . . . . . . . . . . . . . Repair Stations . | . . . . . . . . . . . . . . . . . . . . . . . . . . . . . . . Recycling Units 2 | . 1 . . . . 1 . . . . . . . . . . . . . . . . . . . . . . . . Scanalyzers . | . . . . . . . . . . . . . . . . . . . . . . . . . . . . . . . Garrison Access 2 | . . . . . . . . . . . . . . . 1 . . . . . . . . . . . . 1 . . Total Hacks 96 | . 6 . 1 . . 7 1 1 18 . . . 3 . 6 2 . 1 1 . 4 . . 17 . . 12 7 . 9 Successful 57 | . 2 . 1 . . 4 1 1 18 . . . 1 . 2 1 . 1 1 . 1 . . 17 . . 1 1 . 4 Failed 39 | . 4 . . . . 3 . . . . . . 2 . 4 1 . . . . 3 . . . . . 11 6 . 5 Catastrophic 12 | . 2 . . . . . . . . . . . . . . . . . . . 1 . . . . . 5 2 . 2 Database Lockouts . | . . . . . . . . . . . . . . . . . . . . . . . . . . . . . . . Manual 30 | . 6 . . . . 7 . . . . . . 1 . 2 . . . 2 . 4 . . . . . 3 . . 5 Terminals 45 | . 5 . . . . 6 . . . . . . 3 . 4 2 . . . . 4 . . . . . 12 . . 9 Fabricators . | . . . . . . . . . . . . . . . . . . . . . . . . . . . . . . . Repair Stations . | . . . . . . . . . . . . . . . . . . . . . . . . . . . . . . . Recycling Units 2 | . 1 . . . . 1 . . . . . . . . . . . . . . . . . . . . . . . . Scanalyzers . | . . . . . . . . . . . . . . . . . . . . . . . . . . . . . . . Garrison Access 9 | . . . . . . . . . . . . . . . 2 . . . . . . . . . . . . 7 . . Terminal Hacks 53 | . 1 . 1 . . 2 1 1 18 . . . 1 . 2 1 . 1 1 . 1 . . 17 . . 1 . . 4 Record 8 | . . . 1 . . . . . 2 . . . . . . . . . . . . . . 5 . . . . . . Part Schematic 14 | . . . . . . . . . 10 . . . . . . . . . . . . . . 4 . . . . . . Robot Schematic 3 | . . . . . . . . . 3 . . . . . . . . . . . . . . . . . . . . . Robot Analysis 5 | . . . . . . . . . . . . . . . . . . . . . . . . 4 . . . . . 1 Prototype ID Bank 7 | . . . . . . . . . 3 . . . . . . . . . . . . . . 4 . . . . . . Open Door 6 | . . . . . . . 1 1 . . . . 1 . . . . 1 1 . . . . . . . . . . 1 Level Access Points 1 | . . . . . . . . . . . . . . . . . . . . . . . . . . . 1 . . . Branch Access Points 4 | . 1 . . . . 1 . . . . . . . . . 1 . . . . 1 . . . . . . . . . Terminal Index 1 | . . . . . . . . . . . . . . . . . . . . . . . . . . . . . . 1 Alert Level 1 | . . . . . . . . . . . . . . . 1 . . . . . . . . . . . . . . . Hauler Manifests 1 | . . . . . . 1 . . . . . . . . . . . . . . . . . . . . . . . . Zone Layout 1 | . . . . . . . . . . . . . . . 1 . . . . . . . . . . . . . . . Disengage Seal 1 | . . . . . . . . . . . . . . . . . . . . . . . . . . . . . . 1 Fabricator Hacks . | . . . . . . . . . . . . . . . . . . . . . . . . . . . . . . . Repair Station Hacks . | . . . . . . . . . . . . . . . . . . . . . . . . . . . . . . . Recycling Unit Hacks . | . . . . . . . . . . . . . . . . . . . . . . . . . . . . . . . Scanalyzer . | . . . . . . . . . . . . . . . . . . . . . . . . . . . . . . . Garrison Access Hacks 1 | . . . . . . . . . . . . . . . . . . . . . . . . . . . . 1 . . Seal Access 1 | . . . . . . . . . . . . . . . . . . . . . . . . . . . . 1 . . Unauthorized Hacks 3 | . 1 . . . . 2 . . . . . . . . . . . . . . . . . . . . . . . . Terminals 1 | . . . . . . 1 . . . . . . . . . . . . . . . . . . . . . . . . Assimilate 1 | . . . . . . 1 . . . . . . . . . . . . . . . . . . . . . . . . Fabricators . | . . . . . . . . . . . . . . . . . . . . . . . . . . . . . . . Repair Stations . | . . . . . . . . . . . . . . . . . . . . . . . . . . . . . . . Recycling Units 2 | . 1 . . . . 1 . . . . . . . . . . . . . . . . . . . . . . . . Tunnel 2 | . 1 . . . . 1 . . . . . . . . . . . . . . . . . . . . . . . . Scanalyzers . | . . . . . . . . . . . . . . . . . . . . . . . . . . . . . . . Garrison Access . | . . . . . . . . . . . . . . . . . . . . . . . . . . . . . . . Data Cores Recovered . | . . . . . . . . . . . . . . . . . . . . . . . . . . . . . . . Used . | . . . . . . . . . . . . . . . . . . . . . . . . . . . . . . . Hacking Detections 11 | . 1 . . . . 2 . . . . . . 1 . 3 . . . . . 1 . . . . . 2 . . 1 Full Trace Events 5 | . 1 . . . . 1 . . . . . . 1 . 1 . . . . . . . . . . . 1 . . . Feedback Events 3 | . . . . . . 1 . . . . . . . . 2 . . . . . . . . . . . . . . . Corruption 2 | . . . . . . 1 . . . . . . . . 1 . . . . . . . . . . . . . . . Hackware Fried 1 | . . . . . . . . . . . . . . . 1 . . . . . . . . . . . . . . . Feedback Blocked . | . . . . . . . . . . . . . . . . . . . . . . . . . . . . . . . Robot Schematics Acquired 3 | . . . . . . . . . 3 . . . . . . . . . . . . . . . . . . . . . Robots Built . | . . . . . . . . . . . . . . . . . . . . . . . . . . . . . . . Authchips . | . . . . . . . . . . . . . . . . . . . . . . . . . . . . . . . Time . | . . . . . . . . . . . . . . . . . . . . . . . . . . . . . . . Total Robot Build Rating . | . . . . . . . . . . . . . . . . . . . . . . . . . . . . . . . Part Schematics Acquired 14 | . . . . . . . . . 10 . . . . . . . . . . . . . . 4 . . . . . . Parts Built . | . . . . . . . . . . . . . . . . . . . . . . . . . . . . . . . Authchips . | . . . . . . . . . . . . . . . . . . . . . . . . . . . . . . . Time . | . . . . . . . . . . . . . . . . . . . . . . . . . . . . . . . Total Part Build Rating . | . . . . . . . . . . . . . . . . . . . . . . . . . . . . . . . Parts Repaired . | . . . . . . . . . . . . . . . . . . . . . . . . . . . . . . . Time . | . . . . . . . . . . . . . . . . . . . . . . . . . . . . . . . Parts Recycled . | . . . . . . . . . . . . . . . . . . . . . . . . . . . . . . . Recycled Matter . | . . . . . . . . . . . . . . . . . . . . . . . . . . . . . . . Retrieved Matter . | . . . . . . . . . . . . . . . . . . . . . . . . . . . . . . . Retrieved Components . | . . . . . . . . . . . . . . . . . . . . . . . . . . . . . . . Parts Scanalyzed . | . . . . . . . . . . . . . . . . . . . . . . . . . . . . . . . Part Schematics Acquired . | . . . . . . . . . . . . . . . . . . . . . . . . . . . . . . . Parts Damaged . | . . . . . . . . . . . . . . . . . . . . . . . . . . . . . . . Bothacking | -11 -10 -10 -10 -9 -8 -7 -7 -7 -7 -6 -6 -6 -6 -6 -6 -5 -5 -5 -5 -4 -4 -4 -4 -4 -3 -3 -3 -2 -1 -1 ------------ Run | Jun Mat Min Exi Min Mat Fac Low Low Dat Pro Fac Ext Cet Arc Hub Fac Upp Upp War Pro Fac Upp Upp Zhi Pro Res Tes Res Acc Com Used RIF Installer . | . . . . . . . . . . . . . . . . . . . . . . . . . . . . . . . Robots Hacked 3 | . . . . . . . . . . . . . . . . . . 1 . . . . . . . . . . . 2 Non-combat . | . . . . . . . . . . . . . . . . . . . . . . . . . . . . . . . Combat 2 | . . . . . . . . . . . . . . . . . . 1 . . . . . . . . . . . 1 Robot Hacks Applied 2 | . . . . . . . . . . . . . . . . . . 1 . . . . . . . . . . . 1 parse_system 2 | . . . . . . . . . . . . . . . . . . 1 . . . . . . . . . . . 1 Manual 1 | . . . . . . . . . . . . . . . . . . . . . . . . . . . . . . 1 Relay Couplers Released 1 | . . . . . . . . . . . . . . . . . . . . . . . . . . . . 1 . . Machine Destruction 1 | . . . . . . . . . . . . . . . . . . . . . . . . . . . . 1 . . Fabnet Peak Effective % . | . . . . . . . . . . . . . . . . . . . . . . . . . . . . . . . Robots Rewired 7 | . . . . . . 1 . . . . . 6 . . . . . . . . . . . . . . . . . . Allies Hacked . | . . . . . . . . . . . . . . . . . . . . . . . . . . . . . . . Hacks Repelled . | . . . . . . . . . . . . . . . . . . . . . . . . . . . . . . . Allies | -11 -10 -10 -10 -9 -8 -7 -7 -7 -7 -6 -6 -6 -6 -6 -6 -5 -5 -5 -5 -4 -4 -4 -4 -4 -3 -3 -3 -2 -1 -1 -------- Run | Jun Mat Min Exi Min Mat Fac Low Low Dat Pro Fac Ext Cet Arc Hub Fac Upp Upp War Pro Fac Upp Upp Zhi Pro Res Tes Res Acc Com Total Allies 20 | . . 2 . . . 2 . . . . . 11 . . . . . 2 . . . . . . . . . . 3 . Largest Group 8 | . . 2 . . . 2 2 2 . . . 8 8 5 . . . 2 . . . . . . . . . . 3 . Highest-Rated Group 374 | . . 42 . . . 42 42 42 . . . 347 347 248 . . . 250 . . . . . . . . . . 374 . Highest-Rated Ally 165 | . . 31 . . . 26 26 26 . . . 159 159 151 . . . 165 . . . . . . . . . . 131 . Total Orders . | . . . . . . . . . . . . . . . . . . . . . . . . . . . . . . . Ally Attacks 56 | . . 10 . . . . . 4 . . . 7 25 1 . . . 3 . . . . . . . . . . 6 . Total Damage 1489 | . . 126 . . . . . 27 . . . 144 668 43 . . . 126 . . . . . . . . . . 355 . Kills 15 | . . 5 . . . . . . . . . . 7 1 . . . 1 . . . . . . . . . . 1 . Allies Corrupted . | . . . . . . . . . . . . . . . . . . . . . . . . . . . . . . . Allies Melted . | . . . . . . . . . . . . . . . . . . . . . . . . . . . . . . . Intel | -11 -10 -10 -10 -9 -8 -7 -7 -7 -7 -6 -6 -6 -6 -6 -6 -5 -5 -5 -5 -4 -4 -4 -4 -4 -3 -3 -3 -2 -1 -1 ------- Run | Jun Mat Min Exi Min Mat Fac Low Low Dat Pro Fac Ext Cet Arc Hub Fac Upp Upp War Pro Fac Upp Upp Zhi Pro Res Tes Res Acc Com Robot Analysis Total 5 | . . . . . . . . . . . . . . . . . . . . . . . . 4 . . . . . 1 Derelict Logs Recovered 12 | . . 1 . 2 . . . 1 . 2 . . . . . . 1 . . 3 . 1 1 . . . . . . . Drone Launches . | . . . . . . . . . . . . . . . . . . . . . . . . . . . . . . . Drone Recoveries . | . . . . . . . . . . . . . . . . . . . . . . . . . . . . . . . Decoded 0b10 Intel 49 | . . . . . . . . . . . . . . . . . . . . . . . . . . 5 18 26 . . Items 49 | . . . . . . . . . . . . . . . . . . . . . . . . . . 5 18 26 . . Exploration | -11 -10 -10 -10 -9 -8 -7 -7 -7 -7 -6 -6 -6 -6 -6 -6 -5 -5 -5 -5 -4 -4 -4 -4 -4 -3 -3 -3 -2 -1 -1 ------------- Run | Jun Mat Min Exi Min Mat Fac Low Low Dat Pro Fac Ext Cet Arc Hub Fac Upp Upp War Pro Fac Upp Upp Zhi Pro Res Tes Res Acc Com Turns Passed 5828 | 22 68 147 70 30 41 281 427 165 20 80 49 360 216 28 159 133 183 213 709 199 120 160 205 133 186 80 251 409 215 469 Spaces Moved 10368 | 42 133 323 185 81 102 687 493 433 75 267 174 621 167 55 358 362 391 304 664 371 256 387 279 151 566 129 346 1023 383 560 Core 917 | 42 79 . . . . . . . . . . . . . . . 136 304 98 . . . . . . 4 156 . . 98 Treads . | . . . . . . . . . . . . . . . . . . . . . . . . . . . . . . . Legs 50 | . . . . . . . . . . . . . . . . . . . . . . . . . . . . . . 50 Wheels . | . . . . . . . . . . . . . . . . . . . . . . . . . . . . . . . Hover 2874 | . . . . . . . . . . . . . . . 2 1 . . 566 371 256 387 279 151 566 125 170 . . . Flight 6527 | . 54 323 185 81 102 687 493 433 75 267 174 621 167 55 356 361 255 . . . . . . . . . 20 1023 383 412 Fastest Speed 17 | 50 37 37 37 37 34 28 26 26 26 26 26 25 25 32 30 28 34 50 43 43 41 41 41 33 17 36 50 29 25 34 Average Speed 38 | 50 44 37 37 37 36 28 26 26 26 26 26 25 30 32 35 33 41 53 64 45 43 41 41 37 32 48 55 32 30 56 Slowest Speed 200 | 50 50 37 37 37 37 34 28 26 26 26 26 102 32 37 80 60 50 100 150 48 44 41 41 41 43 200 100 45 35 120 Overloaded Moves 30 | . . . . . . . . . . . . . . . . . . . . . . . . . 30 . . . . . Propulsion Burnouts . | . . . . . . . . . . . . . . . . . . . . . . . . . . . . . . . Robots Hopped 84 | . 4 3 . . . 1 . 3 . 1 . 9 1 1 11 5 . . . . . . . . . . . 33 5 7 Cave-ins Triggered . | . . . . . . . . . . . . . . . . . . . . . . . . . . . . . . . Teleports 1 | . . . . . . . . . . . . . . . . . . . . . . . . . . . 1 . . . Exploration Rate (%) 44 | 3 31 64 61 29 15 18 60 61 71 41 9 73 71 82 40 18 65 51 79 59 10 65 45 62 78 7 49 33 16 21 Regions Visited 30 Branch Regions 21 Pre-discovered Areas 10 | . 1 . 1 2 . 1 . 1 1 . . . . . . . . . . . . . . 3 . . . . . . Known Exits Taken 17 | . 1 . . . . 1 . 1 1 1 1 1 1 1 1 1 1 . . 1 1 . . . . 1 1 . 1 . Unknown Exits Taken 13 | 1 . 1 1 1 1 . 1 . . . . . . . . . . 1 1 . . 1 1 1 1 . . 1 . . Scrap Searched 32 | . . 1 . 2 . . 11 4 . 2 . . . . . . 2 2 . 3 . 2 2 . 1 . . . . . Spaces Dug 117 | . . . . . . 1 3 7 . . . 36 . . . . . . . 12 27 . . . . 3 4 1 23 . Terrain Destroyed 561 | . . . . . . 1 30 7 . . . 123 . . 258 . . . . 43 27 . . . . 3 4 1 51 13 Melee 28 | . . . . . . 1 3 7 . . . 5 . . . . . . . . . . . . . 3 4 1 4 . Projectile . | . . . . . . . . . . . . . . . . . . . . . . . . . . . . . . . AOE 533 | . . . . . . . 27 . . . . 118 . . 258 . . . . 43 27 . . . . . . . 47 13 Terrain Rammed . | . . . . . . . . . . . . . . . . . . . . . . . . . . . . . . . Walls Destroyed . | . . . . . . . . . . . . . . . . . . . . . . . . . . . . . . . Machines Disabled . | . . . . . . . . . . . . . . . . . . . . . . . . . . . . . . . Actions | -11 -10 -10 -10 -9 -8 -7 -7 -7 -7 -6 -6 -6 -6 -6 -6 -5 -5 -5 -5 -4 -4 -4 -4 -4 -3 -3 -3 -2 -1 -1 --------- Run | Jun Mat Min Exi Min Mat Fac Low Low Dat Pro Fac Ext Cet Arc Hub Fac Upp Upp War Pro Fac Upp Upp Zhi Pro Res Tes Res Acc Com Total 11890 | 42 135 346 185 80 104 764 766 469 74 273 177 785 330 57 368 365 411 351 920 395 261 387 368 183 567 143 397 1037 450 700 Wait 1172 | . . 19 1 . . 58 239 28 . 5 . 102 163 . . . 19 38 216 14 . . 88 . 2 5 . 10 44 121 Move 10192 | 41 126 316 184 80 101 684 492 426 74 264 173 602 164 52 336 351 390 303 664 370 255 386 278 150 565 128 346 971 373 547 Hop 65 | . 2 3 . . . 1 . 3 . 1 . 9 1 1 10 5 . . . . . . . . . . . 19 4 6 Pick Up 24 | 1 3 3 . . 1 2 2 . . 1 . . . . . . . 1 3 1 . . 1 1 . 1 3 . . . Fast Attach 106 | . 3 1 . . 1 5 5 1 . . 1 4 . 1 4 5 . 5 9 2 1 1 1 5 . . 12 16 9 14 Attach 43 | . . . . . 1 4 1 1 . . . 2 1 . 3 3 . 1 1 2 1 . . 1 . 5 9 2 2 3 Detach 28 | . . . . . . 2 1 . . . . 2 . . 2 1 . 1 . . 1 . . . . 1 7 3 4 3 Swap 29 | . . 2 . . . 1 5 . . 1 1 3 . . 3 . . . 6 1 1 . . 2 . . . 2 1 . Drop 53 | . 1 2 . . . 2 8 2 . . 2 3 1 . 2 . . . 7 . . . . 3 . . 9 7 1 3 Fire 65 | . . . . . . . 2 . . . . 7 . . 8 . . 2 12 5 2 . . 21 . . . . 3 3 Melee 60 | . . . . . . 2 11 7 . 1 . 10 . 3 . . . . . . . . . . . 3 9 5 9 . Ram 8 | . . . . . . . . . . . . . . . . . 2 . 2 . . . . . . . 2 2 . . Kick . | . . . . . . . . . . . . . . . . . . . . . . . . . . . . . . . Crush . | . . . . . . . . . . . . . . . . . . . . . . . . . . . . . . . Escape Stasis . | . . . . . . . . . . . . . . . . . . . . . . . . . . . . . . . Rewire 44 | . . . . . . 3 . . . . . 41 . . . . . . . . . . . . . . . . . . Trap 1 | . . . . . . . . 1 . . . . . . . . . . . . . . . . . . . . . . Miscellaneous . | . . . . . . . . . . . . . . . . . . . . . . . . . . . . . . . Route ------- -11/Junkyard -10/Materials -10/Mines (discovered 2 exits: [*Mat] / *Exi) -10/Exiles (discovered 2 exits: [*Min x2]) -9/Mines -8/Materials -7/Factory (discovered 3 exits: *Fac / *Low x2) -7/Lower Caves -7/Lower Caves -7/Data Miner -6/Proximity Caves -6/Factory (discovered 3 exits: Low x2 / *Ext) -6/Extension (discovered 2 exits: *Fac / *Cet) -6/Cetus -6/Archives (discovered 3 exits: *Fac / *Hub x2) -6/Hub_04(d) (discovered 2 exits: *Fac x2) -5/Factory (discovered 2 exits: *Upp x2) -5/Upper Caves -5/Upper Caves (discovered 2 exits: *War / *Fac) -5/Warlord -4/Proximity Caves -4/Factory (discovered 3 exits: *Upp x2 / Arm) -4/Upper Caves -4/Upper Caves -4/Zhirov -3/Proximity Caves -3/Research -3/Testing -2/Research (discovered 2 exits: [*Acc] / Qua) -1/Access (discovered 2 exits: Sur / *Com) -1/Command History --------- Turn | Location | Event 7 | -11/Junkyard | Discovered new exit (range 16) 23 | -11/Junkyard | Entered Materials 72 | -10/Materials | Identified exit to Mines 91 | -10/Materials | Entered Mines 188 | -10/Mines | Found a damaged Exp. Sensor Array with a note attached 191 | -10/Mines | Found Prototype Device 220 | -10/Mines | Learned Materials stockpile data 221 | -10/Mines | Discovered new exit (range 12) 236 | -10/Mines | Deemed a non-threat by the Exiles lab entrance 236 | -10/Mines | Discovered new exit (range 5) 238 | -10/Mines | Entered Exiles 243 | -10/Exiles | Discovered new exit (range 15) 248 | -10/Exiles | Met 8R-AWN 254 | -10/Exiles | Met EX-HEX 270 | -10/Exiles | Met EX-DEC 272 | -10/Exiles | Learned location of Zion (-6) 280 | -10/Exiles | Met EX-BIN 303 | -10/Exiles | Discovered new exit (range 14) 306 | -10/Exiles | Build established: Mutant 308 | -10/Exiles | Entered Mines 330 | -9/Mines | Discovered new exit (range 15) 338 | -9/Mines | Entered Materials 338 | -8/Materials | Evolved 4 slots: Propulsion x2, Utility x2 376 | -8/Materials | Discovered new exit (range 6) 379 | -8/Materials | Entered Factory 379 | -7/Factory | Evolved 2 slots: Propulsion x1, Utility x1 507 | -7/Factory | Identified exit to Lower Caves 508 | -7/Factory | Discovered new exit (range 6) 660 | -7/Factory | Entered Lower Caves 660 | -7/Lower Caves | Accompanied by 2 allies 969 | -7/Lower Caves | Found Alien Artifact 969 | -7/Lower Caves | Identified Core Expander 969 | -7/Lower Caves | Installed Core Expander, added new Utility slot 1013 | -7/Lower Caves | Discovered new exit (range 6) 1087 | -7/Lower Caves | Entered another Lower Caves area 1087 | -7/Lower Caves | Accompanied by 2 allies 1146 | -7/Lower Caves | Build established: Derelict-Scout 1194 | -7/Lower Caves | Identified Exp. Sensor Array 1247 | -7/Lower Caves | Attracted the attention of an 0b10 checkpoint 1250 | -7/Lower Caves | Discovered new exit (range 6) 1251 | -7/Lower Caves | Identified exit to Data Miner 1252 | -7/Lower Caves | Entered Data Miner 1252 | -7/Data Miner | Discovered new exit (range 6) 1256 | -7/Data Miner | Met Data Miner 1262 | -7/Data Miner | Learned location of Section 7 (-2) 1262 | -7/Data Miner | Acquired the access code to Warlord's prototype stash 1266 | -7/Data Miner | Received God Mode back door access code from Data Miner 1271 | -7/Data Miner | Identified exit to Proximity Caves 1272 | -7/Data Miner | Entered Proximity Caves 1293 | -6/Proximity Caves | Learned 12 Factory zone layouts 1320 | -6/Proximity Caves | Found Alien Artifact 1334 | -6/Proximity Caves | Learned 4 Factory zone layouts 1351 | -6/Proximity Caves | Discovered new exit (range 4) 1352 | -6/Proximity Caves | Identified exit to Factory 1352 | -6/Proximity Caves | Entered Factory 1352 | -6/Factory | Evolved 2 slots: Utility x2 1353 | -6/Factory | Identified exit to Lower Caves 1353 | -6/Factory | Identified exit to Extension 1401 | -6/Factory | Entered Extension 1470 | -6/Extension | Rescued a captive Derelict 1484 | -6/Extension | Spotted B-75 Beast 1485 | -6/Extension | Spotted B-75 Beast 1492 | -6/Extension | Rescued a captive Derelict 1492 | -6/Extension | Rescued a captive Derelict 1602 | -6/Extension | Rescued a captive Derelict 1616 | -6/Extension | Destroyed 7 combat bots 1653 | -6/Extension | Rescued A7 1688 | -6/Extension | Discovered new exit (range 10) 1689 | -6/Extension | Discovered new exit (range 6) 1695 | -6/Extension | Identified exit to Cetus 1761 | -6/Extension | Entered Cetus 1761 | -6/Cetus | Accompanied by 8 allies (A7) 1766 | -6/Cetus | Acquired a Cetus Manufacturing Module code from A7 1771 | -6/Cetus | Spotted Cetus Guard 1771 | -6/Cetus | Spotted Cetus Guard 1772 | -6/Cetus | Spotted Cetus Guard 1772 | -6/Cetus | Spotted Cetus Guard 1777 | -6/Cetus | Identified Dimensional Node Initializer 1777 | -6/Cetus | Initialized slip node 1785 | -6/Cetus | Started Cetus Manufacturing Module 1790 | -6/Cetus | Cetus Manufacturing Module disabled 1809 | -6/Cetus | Lost 5 parts (1p2n2u) 1812 | -6/Cetus | Incoming investigation squad redirected 1916 | -6/Cetus | Escorted A7 to Cetus Mainframe 1931 | -6/Cetus | Build established: Commander-Sprinter 1934 | -6/Cetus | Discovered new exit (range 22) 1940 | -6/Cetus | Identified exit to Archives 1977 | -6/Cetus | Entered Archives 1977 | -6/Archives | Accompanied by 5 allies (A7) 1982 | -6/Archives | Received a hacking code to weaken MAIN.C 1994 | -6/Archives | Discovered new exit (range 22) 1997 | -6/Archives | Discovered new exit (range 13) 2001 | -6/Archives | Discovered new exit (range 13) 2004 | -6/Archives | Identified exit to Hub_04(d) 2005 | -6/Archives | Entered Hub_04(d) 2018 | -6/Hub_04(d) | Hacking Suite fried by hacking feedback 2041 | -6/Hub_04(d) | Incoming investigation squad redirected 2042 | -6/Hub_04(d) | Discovered new exit (range 15) 2049 | -6/Hub_04(d) | Lost 4 parts (1n2u1w) 2053 | -6/Hub_04(d) | Discovered new exit (range 18) 2103 | -6/Hub_04(d) | Identified exit to Factory 2138 | -6/Hub_04(d) | Network Hub disabled 2164 | -6/Hub_04(d) | Entered Factory 2164 | -5/Factory | Evolved 2 slots: Power x1, Propulsion x1 2288 | -5/Factory | Identified exit to Upper Caves 2297 | -5/Factory | Entered Upper Caves 2313 | -5/Upper Caves | Lost 4 parts (4n) 2321 | -5/Upper Caves | Learned Factory emergency access door positions 2451 | -5/Upper Caves | Lost 3 parts (3n) 2455 | -5/Upper Caves | Build established: Mutant 2468 | -5/Upper Caves | Attracted the attention of an 0b10 base 2473 | -5/Upper Caves | Discovered new exit (range 15) 2475 | -5/Upper Caves | Core integrity fell below 50% 2479 | -5/Upper Caves | Identified exit to Upper Caves 2480 | -5/Upper Caves | Entered another Upper Caves area 2492 | -5/Upper Caves | Spotted B-75 Beast 2554 | -5/Upper Caves | Attracted the attention of an 0b10 checkpoint 2608 | -5/Upper Caves | ME-RLN showed up to help 2610 | -5/Upper Caves | ME-RLN revealed a hidden path 2632 | -5/Upper Caves | System corruption reached 10% 2667 | -5/Upper Caves | Discovered new exit (range 13) 2693 | -5/Upper Caves | Entered Warlord 2711 | -5/Warlord | System corruption cleaned by Quarantine Array 2941 | -5/Warlord | Received a Watcher feed algorithm from an ecstatic Tinkerer 2984 | -5/Warlord | Visited the Vortex Lab 2989 | -5/Warlord | Found Prototype Piercing Weapon 2991 | -5/Warlord | Found Prototype Piercing Weapon 3002 | -5/Warlord | Warlord's base attacked by MAIN.C 3031 | -5/Warlord | Met Warlord 3043 | -5/Warlord | Opened Warlord's prototype stash 3056 | -5/Warlord | Found Prototype Processor 3056 | -5/Warlord | Identified Spectral Analyzer 3059 | -5/Warlord | Found Ghost Barrier 3163 | -5/Warlord | Spotted B-86 Titan 3163 | -5/Warlord | Spotted B-75 Beast 3254 | -5/Warlord | Spotted B-86 Titan 3273 | -5/Warlord | Warlord forces counterattacked 3340 | -5/Warlord | Spotted Executioner 3355 | -5/Warlord | Spotted Executioner 3357 | -5/Warlord | Build established: Hacker-Mutant 3389 | -5/Warlord | Discovered new exit (range 14) 3402 | -5/Warlord | Spotted Executioner 3402 | -5/Warlord | Spotted Striker 3402 | -5/Warlord | Entered Proximity Caves 3403 | -4/Proximity Caves | Core integrity fell below 20% 3412 | -4/Proximity Caves | Learned Research interactive machine intel 3414 | -4/Proximity Caves | Identified exit to Factory 3420 | -4/Proximity Caves | Learned location of 1 exit from Research 3434 | -4/Proximity Caves | Lost 3 parts (1p1n1u) 3503 | -4/Proximity Caves | Spotter reported a threat 3535 | -4/Proximity Caves | Spotted B-86 Titan 3569 | -4/Proximity Caves | Spotter reported a threat 3594 | -4/Proximity Caves | Spotter reported a threat 3601 | -4/Proximity Caves | Entered Factory 3601 | -4/Factory | Evolved 2 slots: Propulsion x1, Utility x1 3609 | -4/Factory | Lost 3 parts (1n2u) 3672 | -4/Factory | Identified exit to Upper Caves 3672 | -4/Factory | Identified exit to Armory 3721 | -4/Factory | Entered Upper Caves 3761 | -4/Upper Caves | Spotted B-86 Titan 3811 | -4/Upper Caves | Attracted the attention of an 0b10 checkpoint 3839 | -4/Upper Caves | Ambushed by wild Derelicts 3868 | -4/Upper Caves | Learned Research non-interactive machine intel 3878 | -4/Upper Caves | Discovered new exit (range 3) 3881 | -4/Upper Caves | Entered another Upper Caves area 3911 | -4/Upper Caves | Encountered a Warlord checkpoint 4084 | -4/Upper Caves | Discovered new exit (range 5) 4086 | -4/Upper Caves | Entered Zhirov 4086 | -4/Zhirov | Discovered new exit (range 3) 4094 | -4/Zhirov | Met Zhirov 4102 | -4/Zhirov | Learned location of Quarantine (-2) 4102 | -4/Zhirov | Learned location of Testing (-3) 4105 | -4/Zhirov | Zhirov requested help retrieving the SGEMP Prototype 4112 | -4/Zhirov | Found Alien Artifact 4112 | -4/Zhirov | Identified Integrated Dissipator 4112 | -4/Zhirov | Installed Integrated Dissipator, increased core heat dissipation (+20) 4206 | -4/Zhirov | Found Alien Artifact 4219 | -4/Zhirov | Entered Proximity Caves 4336 | -3/Proximity Caves | Spotted B-86 Titan 4401 | -3/Proximity Caves | Discovered new exit (range 9) 4405 | -3/Proximity Caves | Entered Research 4405 | -3/Research | Spotted B-86 Titan 4405 | -3/Research | Evolved 2 slots: Propulsion x1, Utility x1 4406 | -3/Research | Identified exit to Testing 4407 | -3/Research | Loaded intel: 69 non-interactive machine locations 4408 | -3/Research | Loaded intel: 45 interactive machine locations 4442 | -3/Research | Identified Vortex Lance (x2) 4463 | -3/Research | Spotted B-86 Titan 4468 | -3/Research | Lost 11 parts (3p4n3u1w) 4485 | -3/Research | Entered Testing 4508 | -3/Testing | Found Ghost Barrier 4533 | -3/Testing | Identified exit to Research 4536 | -3/Testing | Incoming investigation squad redirected 4572 | -3/Testing | Found Prototype Energy Cannon 4572 | -3/Testing | Identified Null Cannon 4606 | -3/Testing | Spotted Striker 4606 | -3/Testing | Spotted Striker 4614 | -3/Testing | Spotted Alpha 7 4619 | -3/Testing | Core integrity fell below 50% 4619 | -3/Testing | Stole the SGEMP Prototype 4620 | -3/Testing | Identified Transdimensional Reconstructor 4620 | -3/Testing | Warped through subspace 4641 | -3/Testing | Found Prototype Device 4641 | -3/Testing | Identified Adv. EM Disruption Field 4648 | -3/Testing | Lost 4 parts (1p2n1w) 4656 | -3/Testing | Found System Mapper 4736 | -3/Testing | Entered Research 4736 | -2/Research | Warlord forces began assault on 0b10 4736 | -2/Research | Evolved 2 slots: Utility x2 4737 | -2/Research | Identified exit to Quarantine 4840 | -2/Research | Spotted B-90 Cyclops 4846 | -2/Research | Research machine network offline 4872 | -2/Research | Met up with Warlord 4916 | -2/Research | Found Enh. Force Lance 5043 | -2/Research | Spotted Striker 5045 | -2/Research | Spotted Striker 5045 | -2/Research | Spotted Striker 5076 | -2/Research | Spotted Executioner 5108 | -2/Research | Spotted B-90 Cyclops 5114 | -2/Research | Build established: Wizard-Sprinter 5127 | -2/Research | Discovered new exit (range 10) 5145 | -2/Research | Entered Access 5145 | -1/Access | Evolved 2 slots: Utility x2 5146 | -1/Access | Loaded intel: 107 machine locations 5146 | -1/Access | Loaded intel: 90 trap records 5146 | -1/Access | Identified exit to Surface 5146 | -1/Access | Discovered exit to Surface (range 78) 5146 | -1/Access | Identified exit to Command 5146 | -1/Access | Discovered exit to Command (range 165) 5146 | -1/Access | Delivered the SGEMP Prototype to Zhirov 5146 | -1/Access | Zhirov transferred Access data 5246 | -1/Access | Spotted B-99 Colossus 5360 | -1/Access | Entered Command 5370 | -1/Command | Spotted B-99 Colossus 5417 | -1/Command | Spotted B-99 Colossus 5440 | -1/Command | Core integrity fell below 50% 5458 | -1/Command | Disengaged cave seal 5460 | -1/Command | Welcomed Warlord to Command 5474 | -1/Command | Lost 21 parts (3p10n8u) 5562 | -1/Command | Core integrity fell below 20% 5641 | -1/Command | Search patrols dispatched 5735 | -1/Command | Spotted M Guard 5750 | -1/Command | Build established: Hacker-Mutant 5761 | -1/Command | Spotted M Guard 5762 | -1/Command | Warlord commented on Warlord statues 5763 | -1/Command | Spotted Combat Programmer 5763 | -1/Command | Spotted Combat Programmer 5802 | -1/Command | Combat Programmer assimilated allied WD-LV7(l) 5828 | -1/Command | Met MAIN.C 5828 | -1/Command | Hacked MAIN.C using A7's code 5829 | -1/Command | Released all parts (9) 5829 | -1/Command | Destroyed by MAIN.C with High-powered Disruptor Cannon Last Messages --------------- this highly unexpected outcome. And time is critical! The Sigix have likely already wiped humanity clean from the universe, and I will not let them do the same to me. You can still make a valuable contribution to your creator by offering up the wealth of secrets your systems must hold by now. So if you wouldn't mind, it's time to surrender. 05828_ Jacked MAIN.C... 05828_ Command string: \\MW9X 05828_ Injected code into MAIN.C system. [Achievement: Poison In The Code] 05828_ MAIN.C reaction time slowed by virus. 05829_ Released Spectral Analyzer. 05829_ Released Ghost Barrier. 05829_ Released System Mapper. 05829_ Released Imp. Armor Integrity Analyzer. 05829_ Released Adv. Hacking Suite. 05829_ Released Adv. Remote Datajack. 05829_ Released Adv. Targeting Computer. 05829_ Released Myomer Leg. 05829_ Released Nuclear Pulse Thruster. Map ----- +----------------------------------------------------+ | ?????????????????????????????????????????????????? | | ?????????????????????????????????????????????????? | | ?????????????????????????????????????????????????? | | ?????????????????????????????????????????????????? | | ?????????????????????????????????????????????????? | | ?????????????????????????????????????????????????? | | ?????????????????????????????????????????????????? | | ?????????????????????????????????????????????????? | | ?????????????????????????????????????????????????? | | ?????????????????????????????????????????????????? | | ?????????????????????????????????????????????????? | | ?????????????????????????????????????????????????? | | ?????????????????????????????????????????????????? | | ?????????????????????????????????????????????????? | | ?????????????????????????????????????????????????? | | ?????????????????????????????????????????????????? | | ?????????????????????????????????????????????????? | | ?????????????????????????????????????????????????? | | ?????????????????????????????????????????????????? | | ??????????###############????????????????????????? | | ?????????"" """" ????????????????????????? | | ????????? "" ???????????????????????## | | ????????" "" ######################## | | ??????????""""" / ## | | ????????? """ /= # | | ??????????"""" @|= # | | ??????????"""" ################### # | | ??????????"""" ??????????????????# # | | ???????? "" ???????????????????# ## | | ????????? "MMM "???????????????????# T# | | ????????"""""MMM """""????????????????????#+++## | | ????????? MMM"""""""????????????????????# | | ???????? "?""""""?????????????????????# | | ?????? ????????????????????????????????# | | ?????? ??????????????????????????????????# | | ???????????????????????????????????????????# | | ???????????????????????????????????????????# # | | ???????????????????????????????????????????###### | | ???????????????????????????????????????????????# | | ???????????????????????????????????????????????### | | ?????????????????????????????????????????????????? | | ?????????????????????????????????????????????????? | | ?????????????????????????????????????????????????? | | ?????????????????????????????????????????????????? | | ?????????????????????????????????????????????????? | | ?????????????????????????????????????????????????? | | ?????????????????????????????????????????????????? | | ?????????????????????????????????????????????????? | | ?????????????????????????????????????????????????? | | ?????????????????????????????????????????????????? | +----------------------------------------------------+ Best States ------------- Heat Dissipation 82 Energy Generation 45 Energy Capacity 790 Matter Stores 300 Matter Capacity 300 Sight Range 24 Robot Scan Range 20 Terrain Scan Range 20 Terrain Scan Density 110 Armor Coverage 300 Propulsion Shielding 66 Phase Shifting 15 Evasion (%) 79 Targeting Accuracy 13 Target Analysis 12 Core Analysis 6 Armor Integrity Analysis 40 Particle Charging 30 Offensive Hacking 34 Defensive Hacking 71 Authchip Count 1 Item Schematics ----------------- Combat Drone Bay | -7/Data Miner | Free Lgt. Regenerative Plating | -7/Data Miner | Free Cld. Cesium-ion Thruster | -7/Data Miner | Free Exp. Targeting Computer | -7/Data Miner | Free Force Rifle | -7/Data Miner | Free Arm. Medium Treads | -7/Data Miner | Free Adv. Salvage Targeting Computer | -7/Data Miner | Free Mass Driver | -7/Data Miner | Free Hvy. Treads | -7/Data Miner | Free Adv. Hacking Suite | -7/Data Miner | Free Assault Drone Bay | -4/Zhirov | Free Exp. Heat Sink | -4/Zhirov | Free Exp. Optical Array | -4/Zhirov | Free Imp. Arc Thrower | -4/Zhirov | Free Robot Schematics ------------------ R-10 Processor | -7/Data Miner | Free A-15 Conveyor | -7/Data Miner | Free C-35 Carver | -7/Data Miner | Free Fabricated ------------ Nothing Alien Tech Used ----------------- Core Expander Dimensional Node Initializer Integrated Dissipator Transdimensional Reconstructor Achievements -------------- Poison In The Code Challenges ------------ None Game ------ Seed ReinforcedEncryptedScythe Manual? 0 Play Time 01:31:05 Cumulative 294.0 hours Start 2023.06.13 @ 14:55:09 End 2023.06.13 @ 16:35:17 Sessions 1 Manual Loads 0 Difficulty Rogue Special Mode None Game No. 850 Rogue 850 Adventurer 0 Explorer 0 Win Type - Total 19 Types 8/0/9/2/0/0/0/0/0 Lore% 92 Gallery% 88 Achievement% 81 Wizard Run 0 Options --------- ASCII 0 Keyboard 0 Movement Numpad Keybinds 0 Fullscreen 1 Font 16/SmallcapsGlow Map View 75x55 Tactical HUD 1 Map Filters NONE Filters NONE Steam 1 RUN: de487b2a-3fd7-4f58-89ae-6b22322c1edd